[Event "*** SCC Grand Prix: Titled Tuesday Blitz"]
[Site "Chess.com"]
[Date "2020.07.14"]
[Round "7"]
[White "AniJak"]
[Black "mohssenbinaddi"]
[Result "1-0"]
[WhiteElo "2326"]
[BlackElo "2154"]
[TimeControl "180+1"]
[EndTime "11:21:09 PDT"]
[Termination "AniJak won on time"]

1. e4 {[%clk 0:03:00.9]} 1... c6 {[%clk 0:03:00]} 2. d4 {[%clk 0:03:00.1]} 2...
d5 {[%clk 0:03:00.9]} 3. exd5 {[%clk 0:02:55.3]} 3... cxd5 {[%clk 0:03:01]} 4.
Bd3 {[%clk 0:02:55.8]} 4... Nf6 {[%clk 0:03:00.9]} 5. c3 {[%clk 0:02:56]} 5...
Qc7 {[%clk 0:03:01]} 6. Ne2 {[%clk 0:02:56.2]} 6... Bg4 {[%clk 0:03:00]} 7. Bf4
{[%clk 0:02:55.3]} 7... Qxf4 {[%clk 0:02:55.5]} 8. Nxf4 {[%clk 0:02:54.6]} 8...
Bxd1 {[%clk 0:02:55.3]} 9. Kxd1 {[%clk 0:02:55.5]} 9... e6 {[%clk 0:02:53.3]}
10. Nd2 {[%clk 0:02:55.3]} 10... Nbd7 {[%clk 0:02:52.1]} 11. Re1 {[%clk
0:02:44.9]} 11... Bd6 {[%clk 0:02:52.2]} 12. Ne2 {[%clk 0:02:43.4]} 12... Ng4
{[%clk 0:02:49.7]} 13. f3 {[%clk 0:02:35.4]} 13... Ne3+ {[%clk 0:02:47.3]} 14.
Kc1 {[%clk 0:02:35.3]} 14... Nxg2 {[%clk 0:02:47.4]} 15. Rg1 {[%clk 0:02:34.3]}
15... Nf4 {[%clk 0:02:36]} 16. Nxf4 {[%clk 0:02:31.2]} 16... Bxf4 {[%clk
0:02:36.9]} 17. Rxg7 {[%clk 0:02:31.1]} 17... Bxh2 {[%clk 0:02:35.2]} 18. Rxh7
{[%clk 0:02:31]} 18... Rxh7 {[%clk 0:02:32.7]} 19. Bxh7 {[%clk 0:02:31.9]} 19...
f5 {[%clk 0:02:30.3]} 20. Kc2 {[%clk 0:02:31.3]} 20... Kf7 {[%clk 0:02:29.6]}
21. Rh1 {[%clk 0:02:23.8]} 21... Bf4 {[%clk 0:02:29.4]} 22. Nf1 {[%clk 0:02:14]}
22... Kg7 {[%clk 0:02:28]} 23. Rh4 {[%clk 0:02:06.1]} 23... Bg5 {[%clk
0:02:14.2]} 24. Rh5 {[%clk 0:02:06]} 24... Be7 {[%clk 0:02:10.2]} 25. Bxf5
{[%clk 0:02:05.6]} 25... exf5 {[%clk 0:02:04.8]} 26. Rxf5 {[%clk 0:02:06.5]}
26... Nf6 {[%clk 0:02:05]} 27. Ne3 {[%clk 0:02:05]} 27... Rd8 {[%clk 0:01:55.9]}
28. b3 {[%clk 0:02:04.4]} 28... Kg6 {[%clk 0:01:51.5]} 29. Kd3 {[%clk
0:01:56.1]} 29... Bf8 {[%clk 0:01:50.8]} 30. Re5 {[%clk 0:01:50.9]} 30... Bh6
{[%clk 0:01:48.4]} 31. Ng2 {[%clk 0:01:48.2]} 31... Bc1 {[%clk 0:01:43]} 32. c4
{[%clk 0:01:45.9]} 32... dxc4+ {[%clk 0:01:42.4]} 33. bxc4 {[%clk 0:01:46]}
33... Bb2 {[%clk 0:01:42.4]} 34. Nf4+ {[%clk 0:01:38.8]} 34... Kf7 {[%clk
0:01:33.4]} 35. Ne2 {[%clk 0:01:39.7]} 35... Nd7 {[%clk 0:01:27.4]} 36. Rb5
{[%clk 0:01:39.2]} 36... Ba3 {[%clk 0:01:21.8]} 37. Rxb7 {[%clk 0:01:39.6]}
37... Ke6 {[%clk 0:01:19.3]} 38. Rxa7 {[%clk 0:01:39]} 38... Be7 {[%clk
0:01:12.8]} 39. Ra6+ {[%clk 0:01:29.4]} 39... Kf5 {[%clk 0:01:12.6]} 40. Kc3
{[%clk 0:01:22.4]} 40... Bf6 {[%clk 0:01:07.4]} 41. Ra5+ {[%clk 0:01:20.1]}
41... Ke6 {[%clk 0:01:01.7]} 42. f4 {[%clk 0:01:19.4]} 42... Rh8 {[%clk
0:00:59.3]} 43. f5+ {[%clk 0:01:18]} 43... Ke7 {[%clk 0:00:59.1]} 44. Nf4 {[%clk
0:01:16.4]} 44... Rh2 {[%clk 0:00:55.5]} 45. Ra7 {[%clk 0:01:09.6]} 45... Bg5
{[%clk 0:00:48.8]} 46. Ng6+ {[%clk 0:01:03.4]} 46... Kd6 {[%clk 0:00:48.1]} 47.
c5+ {[%clk 0:01:02.7]} 47... Kc6 {[%clk 0:00:44.7]} 48. Ra6+ {[%clk 0:00:57.9]}
48... Kb5 {[%clk 0:00:43.3]} 49. Rd6 {[%clk 0:00:56.7]} 49... Rh3+ {[%clk
0:00:43.7]} 50. Kc2 {[%clk 0:00:56.1]} 50... Nf6 {[%clk 0:00:39.1]} 51. Rb6+
{[%clk 0:00:50]} 51... Kc4 {[%clk 0:00:38.1]} 52. c6 {[%clk 0:00:47.9]} 52...
Rh2+ {[%clk 0:00:37]} 53. Kd1 {[%clk 0:00:46.6]} 53... Nd5 {[%clk 0:00:32.1]}
54. Rb7 {[%clk 0:00:38.9]} 54... Rd2+ {[%clk 0:00:23.8]} 55. Ke1 {[%clk
0:00:36.8]} 55... Kxd4 {[%clk 0:00:20.6]} 56. c7 {[%clk 0:00:36.4]} 56... Rc2
{[%clk 0:00:18.8]} 57. Nf8 {[%clk 0:00:33.3]} 57... Kd3 {[%clk 0:00:16.1]} 58.
Ne6 {[%clk 0:00:32.8]} 58... Be3 {[%clk 0:00:15.7]} 59. Rb3+ {[%clk 0:00:29.9]}
59... Nc3 {[%clk 0:00:13.5]} 60. Nf4+ {[%clk 0:00:23]} 60... Bxf4 {[%clk
0:00:13.3]} 61. c8=Q {[%clk 0:00:22.1]} 61... Be3 {[%clk 0:00:08.6]} 62. Qa6+
{[%clk 0:00:20.2]} 62... Ke4 {[%clk 0:00:06.2]} 63. Qc4+ {[%clk 0:00:19.5]}
63... Kf3 {[%clk 0:00:06.3]} 64. Rxc3 {[%clk 0:00:19.2]} 1-0

[Event "*** SCC Grand Prix: Titled Tuesday Blitz"]
[Site "Chess.com"]
[Date "2020.07.14"]
[Round "7"]
[White "Natalya_Buksa"]
[Black "MIJUAREZ"]
[Result "1-0"]
[WhiteElo "2532"]
[BlackElo "2386"]
[TimeControl "180+1"]
[EndTime "11:21:11 PDT"]
[Termination "Natalya_Buksa won on time"]

1. d4 {[%clk 0:03:00.9]} 1... d5 {[%clk 0:02:59.2]} 2. Nc3 {[%clk 0:03:01.2]}
2... c5 {[%clk 0:02:57]} 3. dxc5 {[%clk 0:02:55.5]} 3... e6 {[%clk 0:02:52.3]}
4. Bf4 {[%clk 0:02:53.8]} 4... Bxc5 {[%clk 0:02:51.5]} 5. e3 {[%clk 0:02:53.4]}
5... Nc6 {[%clk 0:02:50.2]} 6. Nf3 {[%clk 0:02:52.4]} 6... Nf6 {[%clk
0:02:43.4]} 7. Bd3 {[%clk 0:02:51.9]} 7... O-O {[%clk 0:02:42.6]} 8. O-O {[%clk
0:02:52.3]} 8... Qe7 {[%clk 0:02:40]} 9. e4 {[%clk 0:02:49.3]} 9... dxe4 {[%clk
0:02:13.2]} 10. Nxe4 {[%clk 0:02:48.4]} 10... Nxe4 {[%clk 0:02:09.8]} 11. Bxe4
{[%clk 0:02:48.6]} 11... e5 {[%clk 0:02:08.1]} 12. Bg5 {[%clk 0:02:45.7]} 12...
f6 {[%clk 0:02:04.7]} 13. Bd2 {[%clk 0:02:33.5]} 13... Be6 {[%clk 0:01:59.4]}
14. Qe2 {[%clk 0:02:24.2]} 14... Rac8 {[%clk 0:01:56.2]} 15. c3 {[%clk
0:02:23.3]} 15... Kh8 {[%clk 0:01:44.4]} 16. Bc2 {[%clk 0:02:03.1]} 16... Bd6
{[%clk 0:01:37]} 17. Rfe1 {[%clk 0:01:57.6]} 17... f5 {[%clk 0:01:29.8]} 18. Ng5
{[%clk 0:01:56.6]} 18... Bg8 {[%clk 0:01:23.8]} 19. Bb3 {[%clk 0:01:40.6]} 19...
Bxb3 {[%clk 0:01:09.1]} 20. axb3 {[%clk 0:01:41.5]} 20... h6 {[%clk 0:01:08.7]}
21. Nh3 {[%clk 0:01:28.7]} 21... Qf7 {[%clk 0:01:06.1]} 22. b4 {[%clk
0:01:21.5]} 22... e4 {[%clk 0:01:03.6]} 23. f3 {[%clk 0:01:06.2]} 23... Rce8
{[%clk 0:00:58.7]} 24. fxe4 {[%clk 0:01:01.4]} 24... Rxe4 {[%clk 0:00:55.5]} 25.
Qf2 {[%clk 0:01:00.4]} 25... Rfe8 {[%clk 0:00:52.7]} 26. Rxe4 {[%clk 0:00:50.2]}
26... Rxe4 {[%clk 0:00:51.4]} 27. Re1 {[%clk 0:00:36.2]} 27... Qd5 {[%clk
0:00:45.8]} 28. Nf4 {[%clk 0:00:21.1]} 28... Bxf4 {[%clk 0:00:28.1]} 29. Bxf4
{[%clk 0:00:21.1]} 29... a6 {[%clk 0:00:22.1]} 30. h3 {[%clk 0:00:20.8]} 30...
Rxe1+ {[%clk 0:00:19.7]} 31. Qxe1 {[%clk 0:00:20.5]} 31... Qe4 {[%clk
0:00:17.8]} 32. Qxe4 {[%clk 0:00:20]} 32... fxe4 {[%clk 0:00:18.4]} 33. Kf2
{[%clk 0:00:20.5]} 33... g5 {[%clk 0:00:18.3]} 34. Bd6 {[%clk 0:00:19.8]} 34...
Nd8 {[%clk 0:00:16.3]} 35. Ke3 {[%clk 0:00:20]} 35... Nf7 {[%clk 0:00:16.7]} 36.
Bg3 {[%clk 0:00:19.1]} 36... Kg7 {[%clk 0:00:16.5]} 37. Kxe4 {[%clk 0:00:19.4]}
37... Kf6 {[%clk 0:00:17.1]} 38. c4 {[%clk 0:00:18.6]} 38... Ke6 {[%clk
0:00:16]} 39. Bc7 {[%clk 0:00:17.1]} 39... Nh8 {[%clk 0:00:13.3]} 40. b3 {[%clk
0:00:09.3]} 40... Ng6 {[%clk 0:00:13.2]} 41. g3 {[%clk 0:00:09.6]} 41... h5
{[%clk 0:00:12.2]} 42. Bb8 {[%clk 0:00:09.3]} 42... Ne7 {[%clk 0:00:11.7]} 43.
b5 {[%clk 0:00:08.1]} 43... Nf5 {[%clk 0:00:10.8]} 44. Bc7 {[%clk 0:00:06.2]}
44... axb5 {[%clk 0:00:09.7]} 45. cxb5 {[%clk 0:00:06.3]} 45... Ne7 {[%clk
0:00:08.1]} 46. Kd4 {[%clk 0:00:05.5]} 46... Nd5 {[%clk 0:00:07.6]} 47. b6
{[%clk 0:00:05.2]} 47... Nf6 {[%clk 0:00:06.2]} 48. Bb8 {[%clk 0:00:04.6]} 48...
Nd7 {[%clk 0:00:05.8]} 49. Bc7 {[%clk 0:00:05.1]} 49... Nf6 {[%clk 0:00:05.7]}
50. b4 {[%clk 0:00:04.5]} 50... Nd5 {[%clk 0:00:05.9]} 51. b5 {[%clk 0:00:04.5]}
51... Nf6 {[%clk 0:00:05.2]} 52. Bd8 {[%clk 0:00:04.5]} 52... Nh7 {[%clk
0:00:04.9]} 53. Ke4 {[%clk 0:00:03.9]} 53... Kd7 {[%clk 0:00:03.7]} 54. Bc7
{[%clk 0:00:03.1]} 54... Ke6 {[%clk 0:00:04.1]} 55. h4 {[%clk 0:00:03.5]} 55...
gxh4 {[%clk 0:00:03.4]} 56. gxh4 {[%clk 0:00:04.4]} 56... Nf6+ {[%clk
0:00:03.4]} 57. Kf4 {[%clk 0:00:04.8]} 57... Nh7 {[%clk 0:00:03.4]} 58. Bd8
{[%clk 0:00:04.7]} 58... Kd7 {[%clk 0:00:02.8]} 59. Bc7 {[%clk 0:00:04.8]} 59...
Ke6 {[%clk 0:00:03.5]} 60. Bb8 {[%clk 0:00:05.1]} 60... Kf6 {[%clk 0:00:02.9]}
61. Bd6 {[%clk 0:00:04.7]} 61... Ke6 {[%clk 0:00:02.9]} 62. Be5 {[%clk
0:00:04.6]} 62... Nf8 {[%clk 0:00:01.3]} 63. Bc3 {[%clk 0:00:04.1]} 1-0

[Event "*** SCC Grand Prix: Titled Tuesday Blitz"]
[Site "Chess.com"]
[Date "2020.07.14"]
[Round "7"]
[White "dretch"]
[Black "penguingm1"]
[Result "0-1"]
[WhiteElo "2824"]
[BlackElo "2959"]
[TimeControl "180+1"]
[EndTime "11:21:18 PDT"]
[Termination "penguingm1 won on time"]

1. d4 {[%clk 0:03:00.9]} 1... d5 {[%clk 0:02:59.6]} 2. c4 {[%clk 0:03:01]} 2...
e6 {[%clk 0:02:59.6]} 3. Nc3 {[%clk 0:03:00.5]} 3... Nf6 {[%clk 0:02:53.2]} 4.
cxd5 {[%clk 0:03:00.4]} 4... exd5 {[%clk 0:02:54.1]} 5. Bg5 {[%clk 0:03:00.1]}
5... Be7 {[%clk 0:02:54.7]} 6. e3 {[%clk 0:02:54]} 6... c6 {[%clk 0:02:55.2]} 7.
Bd3 {[%clk 0:02:53]} 7... Nbd7 {[%clk 0:02:55.4]} 8. Nge2 {[%clk 0:02:49.5]}
8... Nf8 {[%clk 0:02:55.3]} 9. Qc2 {[%clk 0:02:36.6]} 9... Ne6 {[%clk
0:02:55.4]} 10. Bh4 {[%clk 0:02:35.7]} 10... g6 {[%clk 0:02:55.7]} 11. O-O
{[%clk 0:02:29.7]} 11... O-O {[%clk 0:02:55.2]} 12. Rad1 {[%clk 0:02:27.5]}
12... b6 {[%clk 0:02:54.6]} 13. f3 {[%clk 0:02:24.9]} 13... Bb7 {[%clk
0:02:46.8]} 14. Nf4 {[%clk 0:02:11.1]} 14... Nxf4 {[%clk 0:02:39.2]} 15. exf4
{[%clk 0:02:10.9]} 15... Nh5 {[%clk 0:02:16.7]} 16. Bxe7 {[%clk 0:02:07.9]}
16... Qxe7 {[%clk 0:02:17.6]} 17. Qd2 {[%clk 0:02:03.7]} 17... c5 {[%clk
0:02:12.7]} 18. Ne2 {[%clk 0:01:43]} 18... Rfe8 {[%clk 0:02:06.4]} 19. Rfe1
{[%clk 0:01:40]} 19... Qf6 {[%clk 0:01:32.8]} 20. f5 {[%clk 0:01:24.4]} 20...
gxf5 {[%clk 0:00:50.2]} 21. Bb5 {[%clk 0:00:30]} 21... Re6 {[%clk 0:00:39.7]}
22. Ng3 {[%clk 0:00:24.5]} 22... Nxg3 {[%clk 0:00:31.9]} 23. hxg3 {[%clk
0:00:25.4]} 23... a6 {[%clk 0:00:30.9]} 24. Ba4 {[%clk 0:00:20.6]} 24... Qxd4+
{[%clk 0:00:14.6]} 25. Qxd4 {[%clk 0:00:19.5]} 25... cxd4 {[%clk 0:00:15]} 26.
Rf1 {[%clk 0:00:16.4]} 26... Re2 {[%clk 0:00:12.1]} 27. Rf2 {[%clk 0:00:16.5]}
27... Re5 {[%clk 0:00:08.4]} 28. Rxd4 {[%clk 0:00:16.5]} 28... Rc8 {[%clk
0:00:08.7]} 29. Rfd2 {[%clk 0:00:16.1]} 29... Rc1+ {[%clk 0:00:08.5]} 30. Rd1
{[%clk 0:00:16]} 30... Rc5 {[%clk 0:00:08.1]} 31. Kf2 {[%clk 0:00:16]} 31... Kg7
{[%clk 0:00:07.6]} 32. R1d2 {[%clk 0:00:15.9]} 32... Kf6 {[%clk 0:00:07.3]} 33.
Bc2 {[%clk 0:00:16.1]} 33... h6 {[%clk 0:00:07.3]} 34. Bd3 {[%clk 0:00:16]}
34... a5 {[%clk 0:00:06.4]} 35. Rh4 {[%clk 0:00:15.8]} 35... Kg6 {[%clk
0:00:06.4]} 36. b4 {[%clk 0:00:15.9]} 36... Rc3 {[%clk 0:00:05.9]} 37. bxa5
{[%clk 0:00:14.5]} 37... bxa5 {[%clk 0:00:06.8]} 38. Bf1 {[%clk 0:00:14]} 38...
Bc6 {[%clk 0:00:06.1]} 39. Rhd4 {[%clk 0:00:13.2]} 39... Re7 {[%clk 0:00:06.2]}
40. Bd3 {[%clk 0:00:13.3]} 40... Kg5 {[%clk 0:00:06.7]} 41. Rf4 {[%clk
0:00:11.9]} 41... Bd7 {[%clk 0:00:06.9]} 42. Bf1 {[%clk 0:00:12]} 42... Be6
{[%clk 0:00:07.2]} 43. Ra4 {[%clk 0:00:11.7]} 43... Rc5 {[%clk 0:00:07.8]} 44.
Rad4 {[%clk 0:00:11.5]} 44... Rb7 {[%clk 0:00:08.1]} 45. Bd3 {[%clk 0:00:11.5]}
45... Rb4 {[%clk 0:00:07.5]} 46. Rxb4 {[%clk 0:00:09.3]} 46... axb4 {[%clk
0:00:08.4]} 47. Rb2 {[%clk 0:00:09.7]} 47... Ra5 {[%clk 0:00:07.8]} 48. Bb1
{[%clk 0:00:09.3]} 48... Ra4 {[%clk 0:00:08]} 49. Ke3 {[%clk 0:00:09.6]} 49...
Kf6 {[%clk 0:00:06.4]} 50. Bc2 {[%clk 0:00:09.2]} 50... Ra3+ {[%clk 0:00:06.6]}
51. Kd4 {[%clk 0:00:08.2]} 51... Ke7 {[%clk 0:00:05.6]} 52. Bb3 {[%clk
0:00:08.4]} 52... Kd6 {[%clk 0:00:05.9]} 53. Rc2 {[%clk 0:00:07.2]} 53... Ra5
{[%clk 0:00:05.1]} 54. Rc1 {[%clk 0:00:07.4]} 54... Ra8 {[%clk 0:00:04.8]} 55.
Rh1 {[%clk 0:00:06.8]} 55... Rh8 {[%clk 0:00:05.1]} 56. Rh4 {[%clk 0:00:05.1]}
56... h5 {[%clk 0:00:05]} 57. Ke3 {[%clk 0:00:04.5]} 57... Kc5 {[%clk
0:00:05.6]} 58. Kd3 {[%clk 0:00:02.9]} 58... Bd7 {[%clk 0:00:05.5]} 59. Ke3
{[%clk 0:00:02.9]} 59... d4+ {[%clk 0:00:04.3]} 60. Rxd4 {[%clk 0:00:02.3]}
60... Re8+ {[%clk 0:00:04.3]} 61. Kd3 {[%clk 0:00:02.8]} 61... Bb5+ {[%clk
0:00:04.6]} 62. Bc4 {[%clk 0:00:03.4]} 62... Bc6 {[%clk 0:00:02.3]} 63. Bb3
{[%clk 0:00:03.1]} 63... Re1 {[%clk 0:00:02.3]} 64. Rf4 {[%clk 0:00:02.9]} 64...
Bb5+ {[%clk 0:00:01.8]} 65. Kd2 {[%clk 0:00:03.1]} 65... Re2+ {[%clk 0:00:02.4]}
66. Kd1 {[%clk 0:00:03.6]} 66... Re5 {[%clk 0:00:02.8]} 67. Rh4 {[%clk
0:00:03.6]} 67... Bf1 {[%clk 0:00:03.3]} 68. Rxh5 {[%clk 0:00:03.3]} 68... Bxg2
{[%clk 0:00:03.9]} 69. Rh4 {[%clk 0:00:01.8]} 69... Bxf3+ {[%clk 0:00:04.2]} 70.
Kd2 {[%clk 0:00:02.4]} 70... Re2+ {[%clk 0:00:04.5]} 71. Kd3 {[%clk 0:00:02.9]}
71... Rg2 {[%clk 0:00:05]} 72. Rf4 {[%clk 0:00:03.1]} 72... Be4+ {[%clk
0:00:05.3]} 73. Ke3 {[%clk 0:00:02.5]} 73... Rxg3+ {[%clk 0:00:05.6]} 74. Ke2
{[%clk 0:00:01.9]} 74... Kd4 {[%clk 0:00:05.7]} 0-1

[Event "*** SCC Grand Prix: Titled Tuesday Blitz"]
[Site "Chess.com"]
[Date "2020.07.14"]
[Round "7"]
[White "SzMM19"]
[Black "Steven_Rojas"]
[Result "1/2-1/2"]
[WhiteElo "2558"]
[BlackElo "2404"]
[TimeControl "180+1"]
[EndTime "11:21:22 PDT"]
[Termination "Game drawn - insufficient material"]

1. e4 {[%clk 0:03:00.9]} 1... e5 {[%clk 0:02:59.9]} 2. Nf3 {[%clk 0:03:01.3]}
2... Nc6 {[%clk 0:03:00.2]} 3. Nc3 {[%clk 0:03:01.8]} 3... g6 {[%clk 0:02:59.9]}
4. d4 {[%clk 0:03:01.1]} 4... exd4 {[%clk 0:03:00.5]} 5. Nxd4 {[%clk 0:03:02]}
5... Bg7 {[%clk 0:03:00.5]} 6. Be3 {[%clk 0:03:02.6]} 6... Nge7 {[%clk 0:03:00]}
7. Be2 {[%clk 0:03:00.3]} 7... O-O {[%clk 0:02:51.1]} 8. O-O {[%clk 0:02:57.3]}
8... d5 {[%clk 0:02:51]} 9. exd5 {[%clk 0:02:51.6]} 9... Nxd5 {[%clk 0:02:51.4]}
10. Nxd5 {[%clk 0:02:38.1]} 10... Nxd4 {[%clk 0:02:51]} 11. Bxd4 {[%clk
0:02:36]} 11... Qxd5 {[%clk 0:02:51]} 12. Bxg7 {[%clk 0:02:35.4]} 12... Qxd1
{[%clk 0:02:51.2]} 13. Raxd1 {[%clk 0:02:34.4]} 13... Kxg7 {[%clk 0:02:52.1]}
14. Bf3 {[%clk 0:02:31]} 14... c6 {[%clk 0:02:49.9]} 15. Rd6 {[%clk 0:02:28.8]}
15... Bf5 {[%clk 0:02:43.4]} 16. c3 {[%clk 0:02:28]} 16... Rad8 {[%clk
0:02:35.6]} 17. Rfd1 {[%clk 0:02:27.6]} 17... Rxd6 {[%clk 0:02:35.8]} 18. Rxd6
{[%clk 0:02:28.5]} 18... Re8 {[%clk 0:02:36.1]} 19. Kf1 {[%clk 0:02:15.1]} 19...
Re7 {[%clk 0:02:29.4]} 20. a4 {[%clk 0:02:09.2]} 20... Rd7 {[%clk 0:02:24.3]}
21. Rxd7 {[%clk 0:02:08.3]} 21... Bxd7 {[%clk 0:02:25.2]} 22. Ke2 {[%clk
0:02:07.7]} 22... Kf6 {[%clk 0:02:25.8]} 23. Ke3 {[%clk 0:02:08.2]} 23... Ke5
{[%clk 0:02:26.3]} 24. Be4 {[%clk 0:02:06.4]} 24... f5 {[%clk 0:02:25.8]} 25.
f4+ {[%clk 0:02:05.4]} 25... Kd6 {[%clk 0:02:26.3]} 26. Bd3 {[%clk 0:02:04.1]}
26... Be6 {[%clk 0:02:24.6]} 27. b4 {[%clk 0:02:00.2]} 27... c5 {[%clk
0:02:23.8]} 28. Be2 {[%clk 0:01:48.5]} 28... b6 {[%clk 0:02:15.9]} 29. Bf3
{[%clk 0:01:29.3]} 29... a5 {[%clk 0:02:12.7]} 30. bxa5 {[%clk 0:01:23.6]} 30...
bxa5 {[%clk 0:02:12.4]} 31. Bd1 {[%clk 0:01:22.9]} 31... Ba2 {[%clk 0:02:07.1]}
32. g3 {[%clk 0:01:20.8]} 32... Kd5 {[%clk 0:02:07]} 33. Bc2 {[%clk 0:01:05.1]}
33... Kc4 {[%clk 0:01:55.5]} 34. Kd2 {[%clk 0:01:05]} 34... Bb3 {[%clk
0:01:53.9]} 35. Bd3+ {[%clk 0:01:05.2]} 35... Kd5 {[%clk 0:01:53.2]} 36. Bb5
{[%clk 0:01:05.5]} 36... Bc4 {[%clk 0:01:21.8]} 37. Be8 {[%clk 0:00:38.1]} 37...
Kd6 {[%clk 0:01:14.6]} 38. Ke3 {[%clk 0:00:34.9]} 38... Ke7 {[%clk 0:00:55.5]}
39. Bc6 {[%clk 0:00:33.5]} 39... Kd6 {[%clk 0:00:53]} 40. Be8 {[%clk 0:00:33.6]}
40... Bd5 {[%clk 0:00:53.1]} 41. Kd3 {[%clk 0:00:26.8]} 41... Bg2 {[%clk
0:00:48.4]} 42. Ke3 {[%clk 0:00:17.6]} 42... Bf1 {[%clk 0:00:41.8]} 43. Bf7
{[%clk 0:00:15.2]} 43... Ba6 {[%clk 0:00:37.9]} 44. Bg8 {[%clk 0:00:14.1]} 44...
Ke7 {[%clk 0:00:35.6]} 45. Bd5 {[%clk 0:00:08.3]} 45... h6 {[%clk 0:00:29.7]}
46. h4 {[%clk 0:00:08.3]} 46... Kf6 {[%clk 0:00:24]} 47. Bg8 {[%clk 0:00:06.3]}
47... g5 {[%clk 0:00:23.3]} 48. hxg5+ {[%clk 0:00:05.2]} 48... hxg5 {[%clk
0:00:24.2]} 49. Bd5 {[%clk 0:00:05.7]} 49... Bf1 {[%clk 0:00:19.3]} 50. Bc6
{[%clk 0:00:03.6]} 50... Bc4 {[%clk 0:00:19.3]} 51. Be8 {[%clk 0:00:02.9]} 51...
Bb3 {[%clk 0:00:15.8]} 52. Bb5 {[%clk 0:00:02.7]} 52... gxf4+ {[%clk 0:00:15.5]}
53. Kxf4 {[%clk 0:00:02.8]} 53... Be6 {[%clk 0:00:15.5]} 54. Bc6 {[%clk
0:00:02.9]} 54... Bc4 {[%clk 0:00:15.1]} 55. Bd7 {[%clk 0:00:02.9]} 55... Bf7
{[%clk 0:00:15.2]} 56. Bxf5 {[%clk 0:00:02.2]} 56... Bb3 {[%clk 0:00:11]} 57.
Bd7 {[%clk 0:00:02.1]} 57... Ke7 {[%clk 0:00:10.6]} 58. Bb5 {[%clk 0:00:02.4]}
58... Bc2 {[%clk 0:00:11.1]} 59. g4 {[%clk 0:00:02.7]} 59... Kd6 {[%clk
0:00:11.6]} 60. g5 {[%clk 0:00:02.9]} 60... Bg6 {[%clk 0:00:11.5]} 61. Bc4
{[%clk 0:00:02.3]} 61... Be8 {[%clk 0:00:08.4]} 62. Kf5 {[%clk 0:00:01.9]} 62...
Bxa4 {[%clk 0:00:08]} 63. Kf6 {[%clk 0:00:01.8]} 63... Bc2 {[%clk 0:00:08.1]}
64. g6 {[%clk 0:00:02.3]} 64... Bxg6 {[%clk 0:00:07.3]} 65. Kxg6 {[%clk
0:00:03.2]} 65... Ke5 {[%clk 0:00:07.9]} 66. Kf7 {[%clk 0:00:03.6]} 66... Ke4
{[%clk 0:00:08.2]} 67. Ke6 {[%clk 0:00:02.1]} 67... Ke3 {[%clk 0:00:08.7]} 68.
Kd5 {[%clk 0:00:01.6]} 68... Kd2 {[%clk 0:00:09.2]} 69. Kxc5 {[%clk 0:00:02.5]}
69... Kxc3 {[%clk 0:00:09.4]} 70. Be6 {[%clk 0:00:03.4]} 70... a4 {[%clk
0:00:09]} 71. Kb5 {[%clk 0:00:03.8]} 71... a3 {[%clk 0:00:09.9]} 72. Ka4 {[%clk
0:00:04]} 72... Kb2 {[%clk 0:00:10.8]} 73. Bb3 {[%clk 0:00:04]} 73... Kc3 {[%clk
0:00:11.1]} 74. Kxa3 {[%clk 0:00:04.1]} 1/2-1/2